[Event "*** Titled Tuesday Blitz"]
[Site "Chess.com"]
[Date "2020.05.05"]
[Round "1"]
[White "Borsuk_Konstantin"]
[Black "Antelacus"]
[Result "1-0"]
[WhiteElo "2626"]
[BlackElo "2309"]
[TimeControl "180+1"]
[EndTime "10:06:35 PDT"]
[Termination "Borsuk_Konstantin won by resignation"]

1. d4 {[%clk 0:03:00.7]} 1... Nf6 {[%clk 0:02:58.4]} 2. c4 {[%clk 0:03:00.2]}
2... e6 {[%clk 0:02:57.7]} 3. Nc3 {[%clk 0:02:59.8]} 3... Bb4 {[%clk 0:02:57.4]}
4. Qc2 {[%clk 0:02:59.8]} 4... O-O {[%clk 0:02:56.4]} 5. a3 {[%clk 0:02:59.2]}
5... Bxc3+ {[%clk 0:02:56.6]} 6. Qxc3 {[%clk 0:03:00.1]} 6... b6 {[%clk
0:02:52]} 7. Bg5 {[%clk 0:02:57]} 7... Bb7 {[%clk 0:02:51.5]} 8. f3 {[%clk
0:02:56.6]} 8... d5 {[%clk 0:02:50.6]} 9. cxd5 {[%clk 0:02:55.7]} 9... exd5
{[%clk 0:02:46.8]} 10. e3 {[%clk 0:02:53.1]} 10... Nbd7 {[%clk 0:02:42]} 11. Bd3
{[%clk 0:02:51.8]} 11... c5 {[%clk 0:02:38.5]} 12. Ne2 {[%clk 0:02:51.8]} 12...
Rc8 {[%clk 0:02:33]} 13. Rd1 {[%clk 0:02:43.6]} 13... Ne4 {[%clk 0:02:15.6]} 14.
Bxd8 {[%clk 0:02:36.3]} 14... Nxc3 {[%clk 0:02:14.3]} 15. Nxc3 {[%clk
0:02:36.6]} 15... Rfxd8 {[%clk 0:02:12.1]} 16. Bf5 {[%clk 0:02:34.9]} 16... g6
{[%clk 0:02:01.2]} 17. Bh3 {[%clk 0:02:34.5]} 17... f5 {[%clk 0:01:54.9]} 18. g4
{[%clk 0:02:28]} 18... fxg4 {[%clk 0:01:49.9]} 19. Bxg4 {[%clk 0:02:27.9]} 19...
c4 {[%clk 0:01:29.4]} 20. Be6+ {[%clk 0:02:24.2]} 20... Kg7 {[%clk 0:01:29.6]}
21. Bxd5 {[%clk 0:02:22.9]} 21... Bxd5 {[%clk 0:01:28.5]} 22. Nxd5 {[%clk
0:02:23.8]} 22... Nf6 {[%clk 0:01:24.3]} 23. Nxf6 {[%clk 0:02:12.6]} 23... Kxf6
{[%clk 0:01:25.2]} 24. Rc1 {[%clk 0:02:10.3]} 24... Kf5 {[%clk 0:01:20.3]} 25.
Ke2 {[%clk 0:02:08.2]} 25... b5 {[%clk 0:01:19.5]} 26. h4 {[%clk 0:02:07.5]}
26... a5 {[%clk 0:01:13.9]} 27. Rhg1 {[%clk 0:02:06.9]} 27... h6 {[%clk
0:01:12.3]} 28. e4+ {[%clk 0:02:06.2]} 28... Kf6 {[%clk 0:01:10.5]} 29. Ke3
{[%clk 0:02:02.7]} 29... Rd7 {[%clk 0:01:04.9]} 30. d5 {[%clk 0:01:53.1]} 30...
Rf8 {[%clk 0:00:56.1]} 31. a4 {[%clk 0:01:43.7]} 31... Rb8 {[%clk 0:00:50.6]}
32. axb5 {[%clk 0:01:42.4]} 32... Rxb5 {[%clk 0:00:50]} 33. Rxc4 {[%clk
0:01:42.7]} 33... Rb6 {[%clk 0:00:46]} 34. Kd4 {[%clk 0:01:38.3]} 34... Rb3
{[%clk 0:00:46.9]} 35. Rc6+ {[%clk 0:01:36.5]} 35... Kf7 {[%clk 0:00:44]} 36.
Rgxg6 {[%clk 0:01:34.1]} 36... Rxf3 {[%clk 0:00:41.7]} 37. Rxh6 {[%clk
0:01:33.5]} 37... Kg7 {[%clk 0:00:36.2]} 38. Rcg6+ {[%clk 0:01:29.8]} 38... Kf7
{[%clk 0:00:36]} 39. Rh7+ {[%clk 0:01:26.3]} 39... Kxg6 {[%clk 0:00:36.1]} 40.
Rxd7 {[%clk 0:01:26.7]} 40... Rb3 {[%clk 0:00:35]} 41. Ra7 {[%clk 0:01:22.7]}
41... Rxb2 {[%clk 0:00:34.2]} 42. Rxa5 {[%clk 0:01:21.2]} 42... Rh2 {[%clk
0:00:30.3]} 43. Ra6+ {[%clk 0:01:17.4]} 43... Kf7 {[%clk 0:00:28.2]} 44. e5
{[%clk 0:01:15.1]} 44... Rxh4+ {[%clk 0:00:27.2]} 45. Kc5 {[%clk 0:01:15.6]}
45... Rh1 {[%clk 0:00:24.2]} 46. Ra7+ {[%clk 0:01:10.5]} 46... Kg6 {[%clk
0:00:23.8]} 47. Kd6 {[%clk 0:01:07.7]} 1-0

[Event "*** Titled Tuesday Blitz"]
[Site "Chess.com"]
[Date "2020.05.05"]
[Round "1"]
[White "BilodeauA"]
[Black "Bossche-CM"]
[Result "1-0"]
[WhiteElo "2902"]
[BlackElo "2454"]
[TimeControl "180+1"]
[EndTime "10:06:36 PDT"]
[Termination "BilodeauA won by resignation"]

1. e4 {[%clk 0:03:00.9]} 1... c5 {[%clk 0:02:58.7]} 2. Nf3 {[%clk 0:03:01.3]}
2... e6 {[%clk 0:02:58.9]} 3. d4 {[%clk 0:03:01.9]} 3... cxd4 {[%clk 0:02:59.6]}
4. Nxd4 {[%clk 0:03:02.8]} 4... Nf6 {[%clk 0:02:59.9]} 5. Nc3 {[%clk 0:03:03.3]}
5... Qb6 {[%clk 0:03:00.1]} 6. Nb3 {[%clk 0:02:58.6]} 6... Nc6 {[%clk
0:02:59.2]} 7. Bd3 {[%clk 0:02:56.3]} 7... a6 {[%clk 0:02:59.3]} 8. O-O {[%clk
0:02:55.6]} 8... Be7 {[%clk 0:02:57.3]} 9. Be3 {[%clk 0:02:53.4]} 9... Qc7
{[%clk 0:02:57.4]} 10. f4 {[%clk 0:02:53.9]} 10... d6 {[%clk 0:02:55.4]} 11. Qf3
{[%clk 0:02:53.7]} 11... b5 {[%clk 0:02:53.4]} 12. a3 {[%clk 0:02:53.6]} 12...
Bb7 {[%clk 0:02:53.3]} 13. Rad1 {[%clk 0:02:39.4]} 13... h5 {[%clk 0:02:50.6]}
14. h3 {[%clk 0:02:38.4]} 14... Rd8 {[%clk 0:02:34.2]} 15. Ne2 {[%clk
0:02:37.9]} 15... h4 {[%clk 0:02:22.5]} 16. c3 {[%clk 0:02:37.2]} 16... d5
{[%clk 0:01:55.1]} 17. e5 {[%clk 0:02:27.8]} 17... Ne4 {[%clk 0:01:55.2]} 18.
Nbd4 {[%clk 0:02:28]} 18... Nxd4 {[%clk 0:01:54]} 19. cxd4 {[%clk 0:02:25.2]}
19... b4 {[%clk 0:01:52.7]} 20. axb4 {[%clk 0:02:21.8]} 20... Bxb4 {[%clk
0:01:51.4]} 21. f5 {[%clk 0:02:22.3]} 21... exf5 {[%clk 0:01:44.6]} 22. Qxf5
{[%clk 0:02:17.3]} 22... Qd7 {[%clk 0:01:45.2]} 23. Qf3 {[%clk 0:02:09.9]} 23...
Rc8 {[%clk 0:01:28.7]} 24. Nf4 {[%clk 0:02:10.1]} 24... g5 {[%clk 0:01:23.1]}
25. Ne2 {[%clk 0:01:58.4]} 25... g4 {[%clk 0:01:23]} 26. hxg4 {[%clk 0:01:56.7]}
26... Rg8 {[%clk 0:01:15.1]} 27. g5 {[%clk 0:01:56.9]} 27... Rc6 {[%clk
0:01:06.2]} 28. Nf4 {[%clk 0:01:54.2]} 28... Nxg5 {[%clk 0:01:03.8]} 29. Qh5
{[%clk 0:01:43.2]} 29... h3 {[%clk 0:01:01.4]} 30. Rc1 {[%clk 0:01:00.7]} 30...
hxg2 {[%clk 0:00:58.5]} 31. Nxg2 {[%clk 0:00:56]} 31... Rb6 {[%clk 0:00:44.9]}
32. Bxg5 {[%clk 0:00:52.3]} 32... Bf8 {[%clk 0:00:41.2]} 33. Bf5 {[%clk
0:00:49.2]} 33... Qb5 {[%clk 0:00:34.5]} 34. e6 {[%clk 0:00:46]} 34... Rg7
{[%clk 0:00:18.8]} 35. exf7+ {[%clk 0:00:42.9]} 35... Rxf7 {[%clk 0:00:19.7]}
36. Rce1+ {[%clk 0:00:42.8]} 1-0

[Event "*** Titled Tuesday Blitz"]
[Site "Chess.com"]
[Date "2020.05.05"]
[Round "1"]
[White "Jbd735"]
[Black "rpragchess"]
[Result "0-1"]
[WhiteElo "2436"]
[BlackElo "2848"]
[TimeControl "180+1"]
[EndTime "10:06:37 PDT"]
[Termination "rpragchess won on time"]

1. e4 {[%clk 0:03:00.9]} 1... c5 {[%clk 0:02:58.6]} 2. Nf3 {[%clk 0:03:00.4]}
2... e6 {[%clk 0:02:58.2]} 3. d4 {[%clk 0:03:00.3]} 3... cxd4 {[%clk 0:02:55.4]}
4. Nxd4 {[%clk 0:03:01.2]} 4... a6 {[%clk 0:02:55]} 5. Bd3 {[%clk 0:03:00.6]}
5... Bc5 {[%clk 0:02:52.7]} 6. Nb3 {[%clk 0:02:58.8]} 6... Be7 {[%clk
0:02:52.7]} 7. Qg4 {[%clk 0:02:58.3]} 7... g6 {[%clk 0:02:52.4]} 8. Qe2 {[%clk
0:02:58.3]} 8... d6 {[%clk 0:02:51.8]} 9. O-O {[%clk 0:02:58.2]} 9... Qc7 {[%clk
0:02:50.7]} 10. Nc3 {[%clk 0:02:55.8]} 10... Nd7 {[%clk 0:02:49.1]} 11. f4
{[%clk 0:02:40.3]} 11... b6 {[%clk 0:02:46.7]} 12. f5 {[%clk 0:02:36.8]} 12...
Ne5 {[%clk 0:02:24.8]} 13. Kh1 {[%clk 0:02:23]} 13... Nf6 {[%clk 0:02:11.5]} 14.
Bg5 {[%clk 0:02:03.2]} 14... O-O {[%clk 0:01:58.4]} 15. Nd4 {[%clk 0:01:32.3]}
15... Bd7 {[%clk 0:01:49.9]} 16. Rad1 {[%clk 0:01:16.2]} 16... b5 {[%clk
0:01:48.7]} 17. a3 {[%clk 0:00:56.5]} 17... Qd8 {[%clk 0:01:47.3]} 18. Bh6
{[%clk 0:00:53.6]} 18... Re8 {[%clk 0:01:47]} 19. h3 {[%clk 0:00:46]} 19... Nh5
{[%clk 0:01:42.8]} 20. Qf2 {[%clk 0:00:37.1]} 20... Bh4 {[%clk 0:01:40.4]} 21.
Qe3 {[%clk 0:00:36.6]} 21... Ng3+ {[%clk 0:01:30.7]} 22. Kh2 {[%clk 0:00:31.8]}
22... Nxf1+ {[%clk 0:01:29.6]} 23. Rxf1 {[%clk 0:00:32]} 23... exf5 {[%clk
0:01:28.8]} 24. g3 {[%clk 0:00:19.9]} 24... Bf6 {[%clk 0:01:26.6]} 25. Nd5
{[%clk 0:00:19.6]} 25... Bg7 {[%clk 0:01:26.5]} 26. Bxg7 {[%clk 0:00:18.8]}
26... Kxg7 {[%clk 0:01:26.5]} 27. Qf4 {[%clk 0:00:17.2]} 27... fxe4 {[%clk
0:00:56.9]} 28. Bxe4 {[%clk 0:00:12.6]} 28... f5 {[%clk 0:00:56.7]} 29. Bg2
{[%clk 0:00:06.7]} 29... Rc8 {[%clk 0:00:50.2]} 30. g4 {[%clk 0:00:06.3]} 30...
fxg4 {[%clk 0:00:47.3]} 31. Nf6 {[%clk 0:00:02.6]} 31... Rf8 {[%clk 0:00:44.7]}
0-1

[Event "*** Titled Tuesday Blitz"]
[Site "Chess.com"]
[Date "2020.05.05"]
[Round "1"]
[White "Fh2411"]
[Black "ADODOVE"]
[Result "1-0"]
[WhiteElo "2480"]
[BlackElo "1982"]
[TimeControl "180+1"]
[EndTime "10:06:37 PDT"]
[Termination "Fh2411 won on time"]

1. d4 {[%clk 0:02:59.7]} 1... Nf6 {[%clk 0:02:51.9]} 2. Nf3 {[%clk 0:02:59.3]}
2... e6 {[%clk 0:02:50.6]} 3. c4 {[%clk 0:02:56.6]} 3... c5 {[%clk 0:02:48]} 4.
Nc3 {[%clk 0:02:55.3]} 4... cxd4 {[%clk 0:02:45.7]} 5. Nxd4 {[%clk 0:02:56.2]}
5... d5 {[%clk 0:02:44.4]} 6. cxd5 {[%clk 0:02:53]} 6... Nxd5 {[%clk 0:02:41.9]}
7. Ndb5 {[%clk 0:02:44.1]} 7... Bb4 {[%clk 0:02:11.8]} 8. a3 {[%clk 0:02:40.4]}
8... Bxc3+ {[%clk 0:02:05.9]} 9. Nxc3 {[%clk 0:02:33.7]} 9... Nxc3 {[%clk
0:02:01.5]} 10. Qxd8+ {[%clk 0:02:34.6]} 10... Kxd8 {[%clk 0:02:00.8]} 11. bxc3
{[%clk 0:02:35.5]} 11... Ke7 {[%clk 0:01:55.9]} 12. a4 {[%clk 0:02:35.1]} 12...
Rd8 {[%clk 0:01:53.9]} 13. Ba3+ {[%clk 0:02:34.5]} 13... Ke8 {[%clk 0:01:53.2]}
14. e3 {[%clk 0:02:35.1]} 14... Nc6 {[%clk 0:01:45.1]} 15. Bb5 {[%clk 0:02:29]}
15... Bd7 {[%clk 0:01:42.3]} 16. O-O {[%clk 0:02:17.4]} 16... a6 {[%clk
0:01:37.1]} 17. Be2 {[%clk 0:02:17]} 17... Rac8 {[%clk 0:01:31]} 18. Rfb1 {[%clk
0:02:09.5]} 18... Na5 {[%clk 0:01:25.5]} 19. Bb4 {[%clk 0:02:09.6]} 19... Nc4
{[%clk 0:01:23.1]} 20. Ra2 {[%clk 0:01:45.7]} 20... b5 {[%clk 0:01:17.2]} 21.
axb5 {[%clk 0:01:40.3]} 21... Bxb5 {[%clk 0:01:14.7]} 22. h3 {[%clk 0:01:35.8]}
22... Rd7 {[%clk 0:01:07.9]} 23. Rd1 {[%clk 0:01:28.1]} 23... Rcd8 {[%clk
0:00:56.6]} 24. Rd4 {[%clk 0:01:25.9]} 24... e5 {[%clk 0:00:51]} 25. Rxc4 {[%clk
0:01:23.3]} 25... Bxc4 {[%clk 0:00:30.2]} 26. Bxc4 {[%clk 0:01:24.2]} 26... Rd1+
{[%clk 0:00:24.9]} 27. Kh2 {[%clk 0:01:23.8]} 27... R1d2 {[%clk 0:00:24.3]} 28.
Rxd2 {[%clk 0:01:13.1]} 28... Rxd2 {[%clk 0:00:24.1]} 29. Kg3 {[%clk 0:01:13.8]}
29... Kd7 {[%clk 0:00:09.2]} 30. Bxa6 {[%clk 0:01:12.6]} 30... Kc6 {[%clk
0:00:08.5]} 31. Bc4 {[%clk 0:01:11.2]} 31... f5 {[%clk 0:00:05.9]} 32. f3 {[%clk
0:01:05.2]} 32... g5 {[%clk 0:00:04.1]} 33. Be6 {[%clk 0:01:00.8]} 33... f4+
{[%clk 0:00:02.6]} 34. exf4 {[%clk 0:01:01.7]} 34... exf4+ {[%clk 0:00:02]} 35.
Kh2 {[%clk 0:01:02]} 35... h5 {[%clk 0:00:02.1]} 36. Bf5 {[%clk 0:00:56.3]} 1-0

[Event "*** Titled Tuesday Blitz"]
[Site "Chess.com"]
[Date "2020.05.05"]
[Round "1"]
[White "AttilaTurzo"]
[Black "pma83"]
[Result "1-0"]
[WhiteElo "2521"]
[BlackElo "2148"]
[TimeControl "180+1"]
[EndTime "10:06:38 PDT"]
[Termination "AttilaTurzo won on time"]

1. e4 {[%clk 0:03:00.9]} 1... c5 {[%clk 0:02:59.3]} 2. Nf3 {[%clk 0:03:01]} 2...
g6 {[%clk 0:02:55]} 3. d4 {[%clk 0:03:01.3]} 3... cxd4 {[%clk 0:02:55.9]} 4.
Nxd4 {[%clk 0:03:02.2]} 4... Bg7 {[%clk 0:02:55.6]} 5. c4 {[%clk 0:03:02.6]}
5... Nc6 {[%clk 0:02:55.1]} 6. Be3 {[%clk 0:03:02.6]} 6... Nf6 {[%clk
0:02:54.1]} 7. Nc3 {[%clk 0:03:03.3]} 7... O-O {[%clk 0:02:54]} 8. Be2 {[%clk
0:03:03.7]} 8... d6 {[%clk 0:02:53.6]} 9. O-O {[%clk 0:03:03.8]} 9... Qa5 {[%clk
0:02:53]} 10. f3 {[%clk 0:02:50.5]} 10... Bd7 {[%clk 0:02:41.9]} 11. Qd2 {[%clk
0:02:47.5]} 11... Rfe8 {[%clk 0:02:36.7]} 12. a3 {[%clk 0:02:46.8]} 12... Rac8
{[%clk 0:02:28]} 13. b4 {[%clk 0:02:46.1]} 13... Qc7 {[%clk 0:02:28.3]} 14. Rac1
{[%clk 0:02:40]} 14... a6 {[%clk 0:02:08.3]} 15. Rfd1 {[%clk 0:02:39.4]} 15...
Qb8 {[%clk 0:02:03.3]} 16. Nd5 {[%clk 0:02:32.6]} 16... Nxd4 {[%clk 0:01:46.1]}
17. Bxd4 {[%clk 0:02:32.1]} 17... Nxd5 {[%clk 0:01:45.6]} 18. exd5 {[%clk
0:02:29.9]} 18... b5 {[%clk 0:01:43.4]} 19. c5 {[%clk 0:02:29.1]} 19... dxc5
{[%clk 0:01:41.5]} 20. bxc5 {[%clk 0:02:26.7]} 20... e5 {[%clk 0:01:40.1]} 21.
Bf2 {[%clk 0:02:15.3]} 21... e4 {[%clk 0:01:31.2]} 22. fxe4 {[%clk 0:02:13.1]}
22... Rxe4 {[%clk 0:01:28.9]} 23. c6 {[%clk 0:02:07.4]} 23... Be8 {[%clk
0:01:22]} 24. Bf3 {[%clk 0:02:00.9]} 24... Rc4 {[%clk 0:01:13.4]} 25. Rxc4
{[%clk 0:01:45.4]} 25... bxc4 {[%clk 0:01:14.3]} 26. d6 {[%clk 0:01:45.7]} 26...
c3 {[%clk 0:00:55.5]} 27. Qe2 {[%clk 0:01:35.9]} 27... Bxc6 {[%clk 0:00:23]} 28.
Bxc6 {[%clk 0:01:24.4]} 28... Rxc6 {[%clk 0:00:13.8]} 29. d7 {[%clk 0:01:24.1]}
29... Rc8 {[%clk 0:00:10.4]} 30. dxc8=Q+ {[%clk 0:01:20]} 30... Qxc8 {[%clk
0:00:11.3]} 31. Qc2 {[%clk 0:01:19]} 31... h5 {[%clk 0:00:11.4]} 32. h3 {[%clk
0:01:17.4]} 32... Kh7 {[%clk 0:00:11.6]} 33. Rd3 {[%clk 0:01:15.6]} 33... Qc4
{[%clk 0:00:11.6]} 34. Be1 {[%clk 0:01:15.1]} 34... Bd4+ {[%clk 0:00:10]} 35.
Kh1 {[%clk 0:01:14.4]} 35... Bb6 {[%clk 0:00:05.6]} 36. Bxc3 {[%clk 0:01:12.5]}
36... Qc5 {[%clk 0:00:05.1]} 37. Rd1 {[%clk 0:01:12.2]} 37... Ba5 {[%clk
0:00:04]} 38. Rc1 {[%clk 0:01:12.3]} 38... Bb6 {[%clk 0:00:03.9]} 39. Bb2 {[%clk
0:01:11.6]} 39... Qg5 {[%clk 0:00:04.3]} 40. Qc3 {[%clk 0:01:10.6]} 1-0

[Event "*** Titled Tuesday Blitz"]
[Site "Chess.com"]
[Date "2020.05.05"]
[Round "1"]
[White "Renegade_Hitman"]
[Black "atalz0"]
[Result "0-1"]
[WhiteElo "2009"]
[BlackElo "2482"]
[TimeControl "180+1"]
[EndTime "10:06:39 PDT"]
[Termination "atalz0 won on time"]

1. c4 {[%clk 0:02:57.8]} 1... e6 {[%clk 0:02:59.6]} 2. Nf3 {[%clk 0:02:57.8]}
2... d5 {[%clk 0:02:59.2]} 3. d4 {[%clk 0:02:58.7]} 3... a6 {[%clk 0:02:57.2]}
4. Nc3 {[%clk 0:02:58.6]} 4... dxc4 {[%clk 0:02:57]} 5. a4 {[%clk 0:02:57.2]}
5... Nc6 {[%clk 0:02:55.2]} 6. e3 {[%clk 0:02:55.8]} 6... Na5 {[%clk 0:02:55]}
7. Ne5 {[%clk 0:02:53.2]} 7... Nb3 {[%clk 0:02:25.8]} 8. Rb1 {[%clk 0:02:45.1]}
8... c5 {[%clk 0:02:25.4]} 9. Bxc4 {[%clk 0:02:36.5]} 9... Nxc1 {[%clk
0:02:21.3]} 10. Rxc1 {[%clk 0:02:33.1]} 10... Nf6 {[%clk 0:02:20.4]} 11. O-O
{[%clk 0:02:31.3]} 11... cxd4 {[%clk 0:02:14.8]} 12. exd4 {[%clk 0:02:32.2]}
12... Bd6 {[%clk 0:02:14.5]} 13. Re1 {[%clk 0:02:30.8]} 13... O-O {[%clk
0:02:13.8]} 14. Qf3 {[%clk 0:02:28.2]} 14... Qb6 {[%clk 0:01:47.4]} 15. Ne4
{[%clk 0:01:57.2]} 15... Be7 {[%clk 0:01:40.1]} 16. Nxf6+ {[%clk 0:01:44.1]}
16... Bxf6 {[%clk 0:01:41]} 17. Qe4 {[%clk 0:01:40]} 17... Rd8 {[%clk
0:01:25.7]} 18. Bd3 {[%clk 0:01:37.4]} 18... g6 {[%clk 0:01:22]} 19. Rc4 {[%clk
0:00:50.8]} 19... Bd7 {[%clk 0:01:08.8]} 20. h4 {[%clk 0:00:20.6]} 20... Be8
{[%clk 0:00:52.1]} 21. h5 {[%clk 0:00:19.5]} 21... Rd5 {[%clk 0:00:30.9]} 22.
hxg6 {[%clk 0:00:18.1]} 22... hxg6 {[%clk 0:00:30.8]} 23. Rec1 {[%clk 0:00:06]}
23... Rad8 {[%clk 0:00:24.8]} 0-1

[Event "*** Titled Tuesday Blitz"]
[Site "Chess.com"]
[Date "2020.05.05"]
[Round "1"]
[White "WPWPWP-2015"]
[Black "Vaathi_Coming"]
[Result "0-1"]
[WhiteElo "2430"]
[BlackElo "2837"]
[TimeControl "180+1"]
[EndTime "10:06:40 PDT"]
[Termination "Vaathi_Coming won on time"]

1. e4 {[%clk 0:02:54.4]} 1... c5 {[%clk 0:02:58.4]} 2. Nf3 {[%clk 0:02:49.9]}
2... e6 {[%clk 0:02:56.7]} 3. b3 {[%clk 0:02:49]} 3... b6 {[%clk 0:02:55.1]} 4.
Bb2 {[%clk 0:02:47.8]} 4... Bb7 {[%clk 0:02:55.1]} 5. Qe2 {[%clk 0:02:47.5]}
5... Nc6 {[%clk 0:02:52.7]} 6. Qe3 {[%clk 0:02:38.9]} 6... Nf6 {[%clk 0:02:51]}
7. Bb5 {[%clk 0:02:37.1]} 7... Nb4 {[%clk 0:02:44.5]} 8. Bd3 {[%clk 0:02:31.9]}
8... Nxd3+ {[%clk 0:02:27.4]} 9. cxd3 {[%clk 0:02:31.2]} 9... d5 {[%clk
0:02:27.7]} 10. Bxf6 {[%clk 0:02:17.3]} 10... Qxf6 {[%clk 0:02:26]} 11. e5
{[%clk 0:02:17.5]} 11... Qg6 {[%clk 0:02:24.3]} 12. d4 {[%clk 0:01:40.6]} 12...
Qxg2 {[%clk 0:02:10.8]} 13. Rg1 {[%clk 0:01:39.9]} 13... Qh3 {[%clk 0:02:11.4]}
14. Nc3 {[%clk 0:01:31.9]} 14... cxd4 {[%clk 0:02:07.7]} 15. Nxd4 {[%clk
0:01:30.8]} 15... Qxe3+ {[%clk 0:02:07.8]} 16. dxe3 {[%clk 0:01:24.1]} 16... a6
{[%clk 0:02:02.1]} 17. Rc1 {[%clk 0:01:16.2]} 17... Rc8 {[%clk 0:02:01.1]} 18.
Ke2 {[%clk 0:01:13]} 18... Ba3 {[%clk 0:01:49.9]} 19. Rc2 {[%clk 0:01:03.7]}
19... g6 {[%clk 0:01:50.1]} 20. Na4 {[%clk 0:00:57.1]} 20... b5 {[%clk
0:01:43.5]} 21. Rxc8+ {[%clk 0:00:47.1]} 21... Bxc8 {[%clk 0:01:44.4]} 22. Nc3
{[%clk 0:00:45.1]} 22... Bb7 {[%clk 0:01:37.8]} 23. Rb1 {[%clk 0:00:38.9]} 23...
Bb4 {[%clk 0:01:34.5]} 24. Nd1 {[%clk 0:00:32.8]} 24... Kd7 {[%clk 0:01:34]} 25.
Nc2 {[%clk 0:00:30.3]} 25... Be7 {[%clk 0:01:33.1]} 26. b4 {[%clk 0:00:25.9]}
26... Rc8 {[%clk 0:01:31.1]} 27. Nd4 {[%clk 0:00:25.2]} 27... f6 {[%clk
0:01:31.1]} 28. f4 {[%clk 0:00:23.8]} 28... g5 {[%clk 0:01:28]} 29. Nf2 {[%clk
0:00:22.6]} 29... gxf4 {[%clk 0:01:21]} 30. exf4 {[%clk 0:00:22.1]} 30... Rc4
{[%clk 0:01:21.6]} 31. exf6 {[%clk 0:00:12.6]} 31... Bxf6 {[%clk 0:01:20.5]} 32.
Nf3 {[%clk 0:00:10.8]} 32... Rxf4 {[%clk 0:01:19.5]} 33. Nd3 {[%clk 0:00:11.1]}
33... Re4+ {[%clk 0:01:18.8]} 34. Kf2 {[%clk 0:00:07.2]} 34... Be7 {[%clk
0:01:17.3]} 35. Nfe5+ {[%clk 0:00:05.5]} 35... Kd6 {[%clk 0:01:13.3]} 36. Nf7+
{[%clk 0:00:05.3]} 36... Kc7 {[%clk 0:01:12.1]} 37. Rc1+ {[%clk 0:00:05]} 37...
Kb6 {[%clk 0:01:11.9]} 38. Nfe5 {[%clk 0:00:04.4]} 38... Bxb4 {[%clk 0:01:11.8]}
39. Nd7+ {[%clk 0:00:04.1]} 39... Ka7 {[%clk 0:01:07.8]} 40. Rc7 {[%clk
0:00:03.1]} 40... Bd6 {[%clk 0:01:06.3]} 41. Rc4 {[%clk 0:00:01.1]} 41... bxc4
{[%clk 0:01:05.6]} 0-1

[Event "*** Titled Tuesday Blitz"]
[Site "Chess.com"]
[Date "2020.05.05"]
[Round "1"]
[White "rogapa"]
[Black "dcann0n88"]
[Result "1-0"]
[WhiteElo "2703"]
[BlackElo "2361"]
[TimeControl "180+1"]
[EndTime "10:06:40 PDT"]
[Termination "rogapa won by resignation"]

1. e4 {[%clk 0:03:00.9]} 1... c5 {[%clk 0:02:55.5]} 2. Nf3 {[%clk 0:03:00.6]}
2... e6 {[%clk 0:02:56]} 3. d4 {[%clk 0:03:01.5]} 3... cxd4 {[%clk 0:02:56.7]}
4. Nxd4 {[%clk 0:03:02]} 4... Nf6 {[%clk 0:02:57.4]} 5. Nc3 {[%clk 0:03:02]}
5... d6 {[%clk 0:02:57.8]} 6. Be2 {[%clk 0:03:01.9]} 6... Be7 {[%clk 0:02:58.2]}
7. Be3 {[%clk 0:03:01.2]} 7... O-O {[%clk 0:02:57.3]} 8. g4 {[%clk 0:03:01.1]}
8... a6 {[%clk 0:02:53.8]} 9. g5 {[%clk 0:03:00.8]} 9... Nfd7 {[%clk 0:02:53.8]}
10. h4 {[%clk 0:03:01.1]} 10... b5 {[%clk 0:02:48.2]} 11. a3 {[%clk 0:03:01]}
11... Bb7 {[%clk 0:02:48.6]} 12. f4 {[%clk 0:02:56.2]} 12... Nc5 {[%clk
0:02:30.2]} 13. Bf3 {[%clk 0:02:50.3]} 13... Nbd7 {[%clk 0:02:07.6]} 14. Qe2
{[%clk 0:02:48]} 14... Nb6 {[%clk 0:02:06.1]} 15. O-O-O {[%clk 0:02:38.1]} 15...
Nc4 {[%clk 0:02:05.3]} 16. Nc6 {[%clk 0:02:29.1]} 16... Bxc6 {[%clk 0:01:59.7]}
17. Bxc5 {[%clk 0:02:28.1]} 17... Qa5 {[%clk 0:01:57.2]} 18. Bd4 {[%clk
0:02:23.6]} 18... e5 {[%clk 0:01:52.6]} 19. Be3 {[%clk 0:02:08.8]} 19... Nxa3
{[%clk 0:01:45]} 20. f5 {[%clk 0:01:58.1]} 20... Nc4 {[%clk 0:01:44.3]} 21. Kb1
{[%clk 0:01:53.6]} 21... Nxe3 {[%clk 0:01:31]} 22. Qxe3 {[%clk 0:01:53.1]} 22...
f6 {[%clk 0:01:29.9]} 23. Nd5 {[%clk 0:01:50.1]} 23... Bd8 {[%clk 0:01:14.3]}
24. Qb3 {[%clk 0:01:38.9]} 24... Kh8 {[%clk 0:01:08]} 25. Rhg1 {[%clk
0:01:37.6]} 25... Rb8 {[%clk 0:01:02.6]} 26. Rg3 {[%clk 0:01:35]} 26... b4
{[%clk 0:01:00.4]} 27. gxf6 {[%clk 0:01:24.9]} 27... Bxf6 {[%clk 0:00:59.6]} 28.
Nxf6 {[%clk 0:01:22.9]} 28... Rxf6 {[%clk 0:00:58.6]} 29. Rdg1 {[%clk
0:01:22.4]} 29... Rb7 {[%clk 0:00:45.1]} 30. Qe3 {[%clk 0:01:13.4]} 30... Qd8
{[%clk 0:00:35.6]} 31. Be2 {[%clk 0:01:11.1]} 31... a5 {[%clk 0:00:35.1]} 32.
Bc4 {[%clk 0:01:10.8]} 32... a4 {[%clk 0:00:21.9]} 33. h5 {[%clk 0:01:10.1]}
33... h6 {[%clk 0:00:13.7]} 34. Rg6 {[%clk 0:01:07.1]} 34... a3 {[%clk
0:00:12.7]} 35. Rxf6 {[%clk 0:01:02.5]} 35... Qxf6 {[%clk 0:00:12.2]} 36. Rg6
{[%clk 0:01:03.4]} 36... Qe7 {[%clk 0:00:09.5]} 37. Rxh6+ {[%clk 0:01:01.1]} 1-0